bitfinex/quotes_ETHUSD_20241130
["timestamp","ask_amount","ask_price","bid_price","bid_amount"]
[1732993961420,3.25374907,3670.3,3669.7,2.725]
[1732993961933,0.04565383,3670.2,3669.7,2.725]
[1732993962338,0.04565383,3670.2,3669.7,2.72495]
[1732993963959,0.04565383,3670.2,3669.9,2.72482]
[1732993964162,0.52916907,3670.3,3669.9,2.72482]
[1732993964358,0.04565383,3670.2,3669.9,2.72482]
[1732993964561,0.52916907,3670.3,3670.0,4.60183545]
[1732993964770,0.52916907,3670.3,3670.2,3.78068545]
[1732993965071,0.0767,3671.0,3670.6,2.72434]
[1732993965385,0.25513978,3670.9,3670.6,2.72434]
[1732993965537,0.25513978,3670.8,3670.6,2.72434]
[1732993965743,0.0767,3671.0,3670.6,2.72434]
[1732993965925,0.25513553,3670.9,3670.6,2.72434]
[1732993966126,0.0767,3671.0,3670.6,2.72434]
[1732993966327,0.25512747,3670.9,3670.4,2.72447]
[1732993966526,0.0767,3671.0,3670.4,2.72447]
[1732993966527,0.25512747,3670.8,3670.4,2.72447]
[1732993966770,0.0767,3671.0,3670.4,2.72447]
[1732993966930,0.25513276,3670.9,3670.4,2.72447]
[1732993967126,0.25513276,3670.8,3670.4,2.72447]
[1732993967330,0.81322111,3670.7,3670.2,3.54562]
[1732993967531,0.5580769,3670.7,3670.2,3.54562]
[1732993967951,0.04417631,3670.6,3670.2,3.54562]
[1732993968670,0.04417631,3670.6,3670.3,2.72452]
[1732993970362,0.04417631,3670.6,3670.2,0.821]
[1732993970757,0.04417631,3670.6,3670.3,2.72455]
[1732993976269,0.04417631,3670.6,3670.1,2.72471]
[1732993976597,0.12087631,3670.6,3670.2,2.72462]
[1732993976759,0.12087631,3670.6,3670.1,2.72471]
[1732993976957,0.12087631,3670.6,3670.3,2.72456]
[1732993978249,0.46118763,3670.6,3670.3,2.72456]
[1732993978455,0.46118763,3670.6,3670.1,2.72471]
[1732993978878,0.46118763,3670.6,3669.7,0.7844]
[1732993979069,0.25518296,3670.5,3670.0,2.72478]
[1732993979395,0.04401609,3670.4,3670.0,2.72478]
[1732993979593,0.41701132,3670.6,3670.0,2.72478]
[1732993979802,0.41400523,3670.5,3670.0,2.72478]
[1732993980278,0.04406441,3670.5,3670.0,2.72478]
[1732993983588,0.54159692,3670.1,3670.0,2.72478]
[1732993983787,0.58546804,3670.1,3670.0,2.72478]
[1732993983986,0.58546804,3670.1,3669.8,2.72493]
[1732993984164,0.54159692,3670.1,3669.8,2.72493]
[1732993984360,0.04382279,3670.0,3669.8,2.72493]
[1732993984583,0.04382279,3670.0,3669.9,2.72486]
[1732993987064,0.54159692,3670.1,3670.0,2.72479]
[1732993987457,0.58503471,3670.1,3670.0,2.72479]
[1732993988763,0.54159692,3670.1,3670.0,2.72479]
[1732993989194,0.58503471,3670.1,3670.0,2.72479]
[1732993989394,0.54159692,3670.1,3670.0,2.72479]
[1732993990105,0.54159692,3670.1,3670.0,4.51265371]
[1732993990423,0.33191362,3670.9,3670.4,2.72444]
[1732993990592,0.25521362,3670.8,3670.4,2.72444]
[1732993990902,0.0767,3670.9,3670.4,2.72444]
[1732993991116,0.54594168,3670.5,3670.4,2.72444]
[1732993991296,0.54594168,3670.5,3670.4,5.11233446]
[1732993994508,0.54594168,3670.5,3670.4,3.269342]
[1732993995329,0.54594168,3670.5,3670.4,2.72444]
[1732994005720,0.583845,3670.5,3670.4,2.72444]
[1732994008023,0.55,3670.4,3670.0,0.7844]
[1732994008226,0.03780668,3670.3,3670.2,2.72463]
[1732994008449,0.11450668,3670.3,3670.0,2.72475]
[1732994008664,0.55,3670.2,3670.0,2.72475]
[1732994008858,0.55,3670.2,3669.8,2.72488]
[1732994009160,0.03771003,3670.1,3669.8,2.72488]
[1732994009527,0.03771003,3670.1,3669.7,2.72495]
[1732994009723,0.03771003,3670.1,3669.9,2.72483]
[1732994010335,0.55,3670.0,3669.9,2.72483]
[1732994010724,0.5876617,3670.0,3669.9,2.72483]
[1732994030851,0.55,3669.8,3669.2,1.09042]
[1732994031082,0.03614834,3669.7,3669.4,2.72523]
[1732994031292,0.55,3669.6,3669.4,2.72523]
[1732994031495,0.58609733,3669.6,3669.4,2.72523]
[1732994034399,0.58609733,3669.6,3669.2,2.72538]
[1732994034600,0.55264764,3669.5,3669.2,2.72538]
[1732994034897,0.58576845,3669.4,3669.2,2.72538]
[1732994035423,0.58576845,3669.4,3669.3,2.72531]
[1732994035997,0.58576845,3669.4,3669.1,1.05859246]
[1732994036223,0.58576845,3669.4,3669.0,2.72552]
[1732994036425,0.66246845,3669.4,3669.0,2.72552]
[1732994040473,0.66246845,3669.4,3669.1,2.72543]
[1732994041232,0.66246845,3669.4,3669.2,2.72537]
[1732994041434,0.66246845,3669.4,3669.3,2.72531]
[1732994041659,0.66246845,3669.4,3669.0,3.78411246]
[1732994041859,0.66246845,3669.4,3669.3,2.72531]
[1732994042076,0.66246845,3669.4,3669.0,3.78411246]
[1732994042277,0.66246845,3669.4,3669.2,2.72537]
[1732994044447,0.58576845,3669.4,3669.2,2.72537]
[1732994051481,0.58576845,3669.4,3669.3,2.72531]
[1732994052427,0.58576845,3669.4,3669.3,3.53421]
[1732994052584,0.03576845,3669.4,3669.3,4.18514625]
[1732994052790,0.55264764,3669.5,3669.4,2.72524]
[1732994052991,0.55264764,3669.5,3669.4,3.78383246]
[1732994053205,0.58684295,3669.5,3669.4,3.78383246]
[1732994054390,0.55264764,3669.5,3669.4,3.78383246]
[1732994054914,0.55264764,3669.5,3669.4,1.05859246]
[1732994059322,0.58685995,3669.5,3669.4,1.05859246]
[1732994066366,0.58685995,3669.5,3669.3,1.05859246]
[1732994073356,0.55,3669.4,3669.3,1.05859246]
[1732994073557,0.55,3669.4,3668.9,0.7539]
[1732994073758,0.55,3669.2,3668.8,1.05859246]
[1732994074100,0.03398401,3669.1,3668.8,1.05859246]
[1732994074864,0.03398401,3669.1,3669.0,1.05859246]
[1732994075197,0.55,3669.4,3669.0,1.05859246]
[1732994075555,0.55,3669.2,3669.0,1.05859246]
[1732994075997,0.03398401,3669.1,3669.0,1.05859246]
[1732994076411,0.55,3669.4,3669.0,1.05859246]
[1732994076609,0.94044576,3669.4,3669.0,1.05859246]
[1732994076771,0.55,3669.2,3669.0,1.05859246]
[1732994077116,0.03398401,3669.1,3669.0,1.05859246]
[1732994086668,0.55,3669.4,3669.0,1.05859246]
[1732994086873,0.55,3669.2,3669.0,1.05859246]
[1732994087071,0.03389247,3669.1,3669.0,1.05859246]
[1732994087379,0.55,3669.4,3669.0,1.05859246]
[1732994087775,0.55,3669.2,3669.0,1.05859246]
[1732994090421,0.03392794,3669.1,3669.0,1.05859246]
[1732994095774,0.03392794,3669.1,3668.8,1.05859246]
[1732994099481,0.58392794,3669.1,3669.0,1.05859246]
[1732994101759,0.91484673,3669.1,3668.7,4.09066]
[1732994101960,0.55,3669.0,3668.7,1.09066]
[1732994102369,0.03370601,3668.9,3668.7,1.09066]
[1732994105008,0.03370601,3668.9,3668.8,1.05859246]
[1732994105506,0.58370601,3668.9,3668.8,1.05859246]
[1732994109177,1.11582135,3668.9,3668.8,1.05859246]
[1732994113147,1.11582135,3668.9,3668.7,1.09066]
[1732994113435,1.11582135,3668.9,3668.7,2.14925246]
[1732994115240,0.56582135,3668.9,3668.8,3.54298]
[1732994115407,0.03370601,3668.9,3668.8,6.54298]
[1732994115737,0.0767,3670.1,3669.3,2.7253]
[1732994115738,0.54892978,3669.6,3669.3,2.7253]
[1732994115909,0.54892978,3669.6,3669.5,1.05859246]
[1732994116110,0.54892978,3669.6,3669.5,3.78375246]
[1732994119934,0.57842664,3669.6,3669.5,3.78375246]
[1732994121858,0.54892978,3669.6,3669.5,3.78375246]
[1732994123917,0.57737247,3669.6,3669.5,3.78375246]
[1732994127169,1.12737247,3669.6,3669.3,3.78389246]
[1732994127381,1.20407247,3669.6,3669.3,3.78389246]
[1732994127953,1.20407247,3669.6,3669.5,1.05859246]
[1732994129130,1.20407247,3669.6,3669.3,2.7253]
[1732994129331,1.12737247,3669.6,3669.5,1.05859246]
[1732994135652,1.12737247,3669.6,3669.4,2.72522]
[1732994139377,0.57737247,3669.6,3669.5,3.78375246]
[1732994139676,0.57737247,3669.6,3669.5,4.51428271]
[1732994139880,0.54892978,3669.6,3669.5,4.51428271]
[1732994143174,0.54892978,3669.6,3669.5,2.72516]
[1732994143563,0.57607468,3669.6,3669.5,2.72516]
[1732994143765,0.54892978,3669.6,3669.5,2.72516]
[1732994145892,0.54892978,3669.6,3669.5,7.58005246]
[1732994146077,0.40820269,3670.7,3670.4,2.72449]
[1732994146283,0.25516893,3670.6,3670.5,2.72441]
[1732994146652,0.0767,3670.8,3670.5,2.72441]
[1732994146861,0.25518757,3670.7,3670.5,2.72441]
[1732994147097,0.0767,3670.8,3670.5,2.72441]
[1732994147278,1.11675807,3670.6,3670.5,2.72441]
[1732994147657,1.11675807,3670.6,3670.3,2.72451]
[1732994147976,0.55,3670.5,3670.3,2.72451]
[1732994148176,0.57742964,3670.5,3670.3,3.78310246]
[1732994148386,0.57742964,3670.5,3670.4,2.72449]
[1732994149389,0.02742964,3670.5,3670.4,2.72449]
[1732994154300,0.55,3670.3,3669.9,2.72481]
[1732994154607,0.02641656,3670.2,3669.9,2.72481]
[1732994154983,0.55,3670.3,3669.9,2.72481]
[1732994155308,0.02627473,3670.1,3669.9,2.72481]
[1732994155469,0.55,3670.3,3669.9,2.72481]
[1732994155670,0.02627315,3670.0,3669.9,2.72481]
[1732994155972,0.55,3670.3,3669.8,3.78353246]
[1732994156305,0.55,3670.3,3670.0,3.78331246]
[1732994156505,0.5393545,3670.1,3670.0,3.78331246]
[1732994158270,0.56567598,3670.1,3670.0,3.78331246]
[1732994159525,0.56567598,3670.1,3669.8,3.78353246]
[1732994159812,0.5393545,3670.1,3670.0,3.78338246]
[1732994164033,0.5393545,3670.1,3669.8,3.78347246]
[1732994164533,0.57534416,3670.0,3669.8,2.72488]
[1732994165422,0.57534416,3670.0,3669.6,3.78366246]
[1732994165628,0.57534416,3670.0,3669.6,2.72507]
[1732994165800,0.55,3669.8,3669.6,2.72507]
[1732994166209,0.02488526,3669.7,3669.4,2.72521]
[1732994166613,0.55,3669.8,3669.4,2.72521]
[1732994166844,0.02487634,3669.6,3669.4,2.72521]
[1732994167218,0.55,3669.8,3669.4,2.72521]
[1732994167543,0.97824594,3669.8,3669.4,2.72523]
[1732994167699,0.55,3670.0,3669.7,2.72501]
[1732994168839,0.55,3670.0,3669.8,2.72492]
[1732994169030,0.02524011,3669.9,3669.8,2.72492]
[1732994173455,0.02524011,3669.9,3669.8,3.50592]
[1732994173635,0.5393545,3670.1,3670.0,2.72479]
[1732994175202,0.5393545,3670.1,3670.0,3.85615487]
[1732994175335,0.25498834,3670.9,3670.3,2.72453]
[1732994175543,0.0767,3671.0,3670.3,2.72453]
[1732994175544,0.25498834,3670.8,3670.6,2.72434]
[1732994175725,0.54326196,3670.7,3670.6,2.72434]
[1732994176122,0.56868109,3670.7,3670.6,2.72434]
[1732994176326,0.02541913,3670.7,3670.6,4.23690655]
[1732994176540,0.25497438,3671.4,3671.1,2.72397]
[1732994176826,0.25499343,3671.6,3671.1,2.72397]
[1732994177031,0.02520316,3671.3,3671.1,2.72397]
[1732994177845,0.02520316,3671.3,3670.9,2.72412]
[1732994178170,0.55,3671.1,3671.0,2.72405]
[1732994178338,0.57576128,3671.1,3671.0,2.72405]
[1732994180933,0.57576128,3671.1,3671.0,3.78264246]
[1732994181775,0.57576128,3671.1,3670.8,3.78278246]
[1732994182069,0.55,3671.1,3670.8,2.72419]
[1732994182430,0.02582164,3671.0,3670.8,2.72419]
[1732994183082,0.02582164,3671.0,3670.6,2.72434]
[1732994183430,0.02582164,3671.0,3670.7,2.72426]
[1732994183847,0.02582164,3671.0,3670.8,2.72418]
[1732994188854,0.02582164,3671.0,3670.7,3.78285246]
[1732994189054,0.02582164,3671.0,3670.9,3.78271246]
[1732994192343,0.0767,3672.0,3670.9,8.29855971]
[1732994192592,0.33116788,3672.3,3671.9,1.05859246]
[1732994192788,0.0767,3672.3,3671.9,3.78197246]
[1732994193098,0.53463052,3672.0,3671.9,3.78197246]
[1732994193846,1.08463052,3672.0,3671.9,3.78197246]
[1732994195957,0.55,3671.9,3671.7,3.78207246]
[1732994196403,0.0257742,3671.8,3671.7,3.78207246]
[1732994198588,0.0257742,3671.8,3671.5,3.78223246]
[1732994198882,0.0257742,3671.8,3671.6,2.7236]
[1732994199273,0.0257742,3671.8,3671.5,1.05859246]
[1732994199477,0.0257742,3671.8,3671.7,2.72353]
[1732994204201,0.0257742,3671.8,3671.5,1.05859246]
[1732994204502,0.55,3671.7,3671.3,1.05859246]
[1732994204713,0.55,3671.7,3670.4,2.72443]
[1732994204868,0.55,3671.7,3671.1,2.72391]
[1732994205062,0.02556769,3671.6,3671.1,2.72391]
[1732994205289,0.02556769,3671.6,3671.2,2.72389]
[1732994205904,0.55,3671.4,3670.9,2.72411]
[1732994206271,0.02532658,3671.3,3670.9,2.72411]
[1732994206467,3.27366,3671.6,3670.9,2.72411]
[1732994206796,3.27366,3671.6,3671.0,2.72403]
[1732994207169,2.74897355,3671.5,3670.8,6.78274246]
[1732994207363,0.53178793,3671.3,3670.8,6.78274246]
[1732994207690,0.57513864,3671.2,3671.0,1.05859246]
[1732994209579,0.57513864,3671.2,3671.1,2.72397]
[1732994209781,0.55,3671.2,3671.1,2.72397]
[1732994209983,0.57513864,3671.2,3671.1,2.72397]
[1732994212184,0.57513864,3671.2,3671.0,1.89149246]
[1732994212593,0.57513864,3671.2,3671.0,4.61553246]
[1732994218906,0.57513864,3671.2,3671.1,2.72397]
[1732994219302,0.55,3671.2,3671.1,2.72397]
[1732994220825,0.53178793,3671.3,3671.2,2.7239]
[1732994221023,0.25497518,3672.2,3671.3,0.7503]
[1732994221184,1.03953755,3672.4,3672.1,1.05859246]
[1732994221378,0.25495309,3672.3,3672.2,2.72314]
[1732994221583,0.28471924,3672.3,3672.2,2.72314]
[1732994221905,0.02976615,3672.3,3672.2,2.72314]
[1732994222092,0.5776785,3672.3,3672.2,2.72314]
[1732994222495,0.5776785,3672.3,3672.1,1.05859246]
[1732994222496,0.5776785,3672.3,3672.0,3.4736]
[1732994222817,0.5776785,3672.3,3672.0,2.7233]
[1732994222995,0.5776785,3672.3,3672.1,2.72322]
[1732994223603,0.5776785,3672.3,3672.2,2.72316]
[1732994224187,1.1276785,3672.3,3672.2,2.72316]
[1732994224394,0.54791235,3672.3,3672.2,4.12396425]
[1732994224595,0.0767,3673.3,3672.7,2.72279]
[1732994224908,0.25483433,3673.2,3672.8,2.7227]
[1732994225285,0.50273413,3673.3,3672.9,2.72261]
[1732994225485,0.53548705,3673.0,3672.9,3.78120246]
[1732994225798,1.08548705,3673.0,3672.9,3.78120246]
[1732994226988,0.53548705,3673.0,3672.9,4.83979492]
[1732994227189,1.14036729,3674.2,3672.9,4.83979492]
[1732994227190,2.72155,3674.4,3673.7,2.72205]
[1732994227522,2.72155,3674.4,3672.7,2.72273]
[1732994227523,0.0767,3673.8,3673.1,1.05859246]
[1732994227832,0.0767,3673.8,3673.2,2.72241]
[1732994228030,0.0767,3673.8,3672.7,0.7503]
[1732994228031,0.0767,3673.8,3673.3,3.78093246]
[1732994228329,0.0767,3673.8,3673.4,2.72225]
[1732994228498,0.0767,3673.8,3673.3,1.05859246]
[1732994228698,0.55,3673.7,3673.5,2.72219]
[1732994229394,0.55,3673.8,3673.5,3.78078246]
[1732994229723,0.93969324,3673.8,3673.0,2.72254]
[1732994229887,0.0767,3673.7,3673.0,2.72254]
[1732994230083,0.0767,3673.7,3672.7,3.47308]
[1732994230084,0.55,3673.6,3672.8,2.72271]
[1732994230287,0.55,3673.3,3672.8,2.72271]
[1732994230509,0.55,3673.3,3672.5,3.78152246]
[1732994230715,0.55,3673.3,3672.6,2.72282]
[1732994231217,0.55,3673.3,3672.7,2.72278]
[1732994231630,3.2722,3673.5,3672.8,2.72271]
[1732994231810,0.55,3673.0,3672.8,2.72271]
[1732994232501,0.55,3673.0,3672.5,2.72293]
[1732994232502,0.55,3673.0,3672.6,2.72285]
[1732994233234,0.55,3673.0,3672.5,2.72293]
[1732994233440,0.55,3673.0,3672.7,2.72272]
[1732994235037,0.55,3673.0,3672.7,2.72276]
[1732994235641,0.55,3673.0,3672.8,2.72271]
[1732994236340,0.55,3672.8,3671.9,0.7503]
[1732994236512,0.55,3672.8,3672.4,2.72297]
[1732994237231,0.55,3672.8,3672.2,2.72315]
[1732994237543,0.55,3672.8,3672.5,2.72293]
[1732994238040,0.55,3672.8,3672.6,2.72286]
[1732994240827,0.55,3672.8,3672.7,2.72279]
[1732994241050,0.55,3673.0,3672.7,2.72279]
[1732994241267,0.55322103,3673.1,3672.9,2.72264]
[1732994241426,0.0767,3673.8,3672.9,2.72264]
[1732994241427,0.0767,3673.8,3673.2,2.72238]
[1732994241637,0.53850867,3673.3,3673.2,2.72242]
[1732994242544,1.08850867,3673.3,3673.2,2.72242]
[1732994242848,0.55,3673.3,3673.2,3.343963]
[1732994244272,0.0767,3674.1,3673.2,3.343963]
[1732994244273,0.55,3673.6,3673.2,3.343963]
[1732994244565,0.55,3673.6,3673.5,2.72219]
[1732994245551,0.54694969,3673.7,3673.6,2.72212]
[1732994245753,0.0767,3674.4,3673.9,2.72188]
[1732994245931,0.33042513,3674.7,3674.2,2.72165]
[1732994246253,0.0767,3674.7,3673.9,2.72182]
[1732994246579,0.32239718,3674.6,3673.9,2.72182]
[1732994247079,0.55,3674.5,3674.2,2.72167]
[1732994248238,1.08213193,3674.3,3674.2,2.72167]
[1732994248792,0.55,3674.2,3674.0,2.72179]
[1732994249550,0.55,3674.2,3673.6,2.72205]
[1732994249551,0.55,3674.2,3673.8,2.72195]
[1732994249748,0.55,3674.2,3673.9,2.72189]
[1732994250061,0.51394177,3674.2,3673.9,2.72189]
[1732994251091,0.51394177,3674.2,3673.7,2.722]
[1732994251387,0.51394177,3674.2,3673.6,2.72207]
[1732994252606,3.63786579,3674.2,3673.4,3.49277]
[1732994252773,3.63786579,3674.2,3673.2,0.621543]
[1732994252774,0.55,3674.0,3673.2,0.621543]
[1732994253100,0.55,3674.0,3673.6,2.72211]
[1732994255864,0.55,3674.0,3673.8,2.72194]
[1732994256072,0.55,3674.0,3673.6,2.72211]
[1732994257707,0.55,3674.0,3673.8,2.72196]
[1732994257903,0.55,3674.1,3673.8,2.72196]
[1732994258072,0.55,3674.2,3673.5,2.72212]
[1732994258272,0.55,3674.2,3673.6,2.72207]
[1732994259273,0.80447009,3674.2,3673.6,2.72207]
[1732994259594,0.55,3674.2,3673.6,2.72207]
[1732994260376,0.80446287,3674.2,3673.6,2.72207]
[1732994260989,0.80446158,3674.2,3673.6,2.72207]
[1732994261792,1.25866578,3674.2,3673.5,2.72212]
[1732994262120,0.53213193,3674.3,3673.3,2.3425328]
[1732994262121,0.55,3674.0,3673.3,2.72232]
[1732994262290,2.72206,3673.7,3673.1,2.72249]
[1732994262622,0.6267,3673.6,3673.1,2.72249]
[1732994263816,0.6267,3673.6,3673.2,2.7224]
[1732994264493,0.6267,3673.6,3672.8,0.8268]
[1732994264494,0.6267,3673.6,3673.1,2.72249]
[1732994264697,0.6267,3673.6,3672.8,0.8268]
[1732994265011,0.6267,3673.6,3673.3,2.7223]
[1732994269322,0.55,3673.6,3673.3,2.7223]
[1732994271384,0.55,3673.6,3673.1,2.72249]
[1732994271924,0.55,3673.4,3673.1,2.72249]
[1732994272100,3.27574182,3673.7,3673.1,2.72249]
[1732994272101,0.55,3673.6,3673.1,2.72249]
[1732994272411,0.55,3673.4,3673.1,2.72249]
[1732994272620,0.55,3673.6,3672.9,2.72262]
[1732994272849,0.55,3673.4,3673.0,2.72254]
[1732994274228,0.55,3673.4,3672.8,2.72266]
[1732994275719,0.55,3673.4,3672.9,2.72263]
[1732994276081,0.55,3673.4,3673.0,2.72253]
[1732994276288,0.55369182,3673.7,3673.0,0.544516]
[1732994276649,0.55369182,3673.7,3673.5,2.72214]
[1732994277645,0.55369182,3673.7,3673.5,2.72219]
[1732994277646,0.55,3673.6,3673.5,2.72219]
[1732994280434,0.55,3673.6,3673.5,3.52269]
[1732994280661,0.55,3673.9,3673.8,2.72197]
[1732994280951,0.0767,3674.4,3673.7,2.72199]
[1732994280952,0.55,3674.2,3673.7,2.72199]
[1732994281109,0.53549156,3673.9,3673.7,2.72199]
[1732994281318,0.55,3673.8,3673.7,2.72199]
[1732994282750,0.55,3673.8,3673.5,3.52269]
[1732994282955,0.55,3673.8,3673.6,2.72211]
[1732994283248,0.55,3673.8,3673.7,2.72205]
[1732994284765,0.55,3673.8,3673.5,3.52268]
[1732994284766,0.55,3673.8,3673.6,2.7221]
[1732994285965,0.55,3673.8,3673.7,2.72205]
[1732994286130,0.55,3673.8,3673.4,2.72227]
[1732994286325,0.55,3673.8,3673.5,0.35272961]
[1732994286969,0.55,3673.8,3673.7,2.72205]
[1732994291071,0.55,3673.8,3673.6,2.72207]
[1732994292387,0.55,3673.8,3673.4,2.72225]
[1732994292388,0.6267,3673.8,3673.4,2.72225]
[1732994292546,0.6267,3673.8,3673.2,0.00452607]
[1732994292866,0.55,3673.6,3673.2,0.00452607]
[1732994293039,0.25484896,3673.5,3673.2,0.00452607]
[1732994293239,0.55,3673.3,3673.2,0.00452607]
[1732994293679,0.55,3673.4,3673.2,0.00452607]
[1732994293887,0.55,3673.7,3673.2,2.72693607]
[1732994294044,0.25484376,3673.6,3673.2,2.72693607]
[1732994294244,0.55,3673.7,3673.2,2.72693607]
[1732994294441,0.55,3673.5,3673.2,2.72693607]
[1732994294670,0.55,3673.7,3673.2,2.72693607]
[1732994294872,0.25484489,3673.6,3673.2,2.72693607]
[1732994295148,0.55,3673.7,3673.2,2.72693607]
[1732994295359,0.55,3673.5,3673.2,2.72693607]
[1732994295559,0.55,3673.7,3673.2,2.72693607]
[1732994295878,0.55,3673.5,3673.2,2.72693607]
[1732994296254,0.55,3673.7,3673.2,2.72693607]
[1732994296463,0.55,3673.5,3673.2,2.72693607]
[1732994296857,0.55,3673.7,3673.2,2.72693607]
[1732994297065,0.55401706,3673.3,3673.2,2.72693607]
[1732994297260,1.10401706,3673.3,3673.2,2.72693607]
[1732994298072,1.10401706,3673.3,3673.2,0.00452607]
[1732994298291,1.10401706,3673.3,3673.2,3.50164607]
[1732994300298,1.10401706,3673.3,3673.2,4.12406468]
[1732994301085,0.55,3673.3,3673.2,5.18070629]
[1732994301504,0.55,3673.4,3673.3,2.72234]
[1732994325250,0.55,3673.4,3673.3,3.52734]
[1732994330363,0.271079,3673.4,3673.3,3.52734]
[1732994330585,0.54019018,3673.5,3673.4,2.72227]
[1732994332252,1.09019018,3673.5,3673.4,2.72227]
[1732994337442,1.09019018,3673.5,3673.3,3.52734]
[1732994337644,0.0767,3673.3,3673.2,0.00452607]
[1732994337838,1.04112885,3673.3,3672.7,2.72272]
[1732994338087,0.55,3673.2,3673.1,2.72249]
[1732994338392,0.55,3673.4,3673.2,2.72241]
[1732994339562,0.55,3673.4,3673.3,2.72234]
[1732994341282,0.54019018,3673.5,3673.4,2.72227]
[1732994342476,1.09019018,3673.5,3673.4,2.72227]
[1732994342654,1.09019018,3673.5,3673.4,3.45138516]
[1732994343179,1.09019018,3673.5,3673.4,2.72227]
[1732994344177,0.55,3673.4,3673.1,2.72248]
[1732994344388,0.55,3673.4,3673.2,2.7224]
[1732994345295,0.55,3673.4,3673.0,2.72251]
[1732994345515,0.6267,3673.4,3672.9,2.72263]
[1732994345657,0.6267,3673.4,3672.7,1.84654161]
[1732994345658,0.6267,3673.4,3673.0,2.7225]
[1732994346656,0.6267,3673.4,3673.1,2.72247]
[1732994346854,0.6267,3673.4,3672.9,2.72264]
[1732994347256,3.73788802,3673.4,3672.7,2.72277]
[1732994347892,1.01559802,3673.4,3672.9,2.72263]
[1732994348268,1.01559802,3673.4,3672.7,2.72279]
[1732994348584,3.73793802,3673.4,3672.8,2.7227]
[1732994351099,1.0839811,3672.9,3672.8,2.7227]
[1732994352977,1.0839811,3672.9,3672.8,4.42956177]
[1732994353179,1.0839811,3672.9,3672.8,5.21946177]
[1732994354619,0.5339811,3672.9,3672.8,5.21946177]
[1732994356719,0.0767,3674.1,3673.7,2.72202]
[1732994358118,0.55,3674.0,3673.5,3.77883161]
[1732994358318,0.55,3674.0,3673.5,2.72219]
[1732994358481,0.55,3674.0,3673.6,2.72212]
[1732994358686,0.55,3674.0,3673.5,2.72219]
[1732994358925,0.55,3673.7,3673.6,2.72205]
[1732994359923,0.55,3673.7,3673.4,2.72226]
[1732994360124,0.6267,3673.7,3673.5,2.72216]
[1732994361997,0.6267,3673.7,3673.3,2.72231]
[1732994364885,0.6267,3673.7,3673.4,2.72225]
[1732994365106,0.6267,3673.7,3673.5,2.72216]
[1732994366219,0.6267,3673.7,3673.3,2.7223]
[1732994366402,0.6267,3673.7,3673.5,2.72218]
[1732994366936,0.6267,3673.7,3673.3,2.72229]
[1732994370593,0.6267,3673.7,3673.4,2.72226]
[1732994371106,0.6267,3673.7,3673.2,2.72241]
[1732994371440,0.6267,3673.7,3673.4,2.72223]
[1732994373630,0.6267,3673.7,3673.5,2.72214]
[1732994375560,0.55,3673.7,3673.5,2.72214]
[1732994382032,0.55,3673.7,3673.1,1.05664161]
[1732994382366,0.55,3673.7,3673.1,2.72247]
[1732994382567,0.55,3673.5,3673.1,2.72247]
[1732994383075,0.55,3673.5,3672.8,3.7589]
[1732994383367,0.55,3673.5,3673.2,2.72235]
[1732994388675,0.55,3673.5,3672.8,0.7589]
[1732994388852,0.55,3673.5,3673.0,2.72251]
[1732994389054,0.55,3673.5,3673.1,2.72249]
[1732994389888,0.55,3673.5,3673.2,2.7224]
[1732994392773,0.55,3673.5,3672.9,2.72263]
[1732994392984,0.55,3673.5,3673.0,2.72255]
[1732994393355,0.55,3673.5,3673.1,2.72249]
[1732994393694,0.55,3673.5,3673.0,2.72256]
[1732994394554,0.55,3673.5,3672.8,3.48161]
[1732994394858,0.55,3673.5,3673.1,2.72249]
[1732994395891,1.10099539,3673.2,3673.1,2.72249]
[1732994397319,1.10099539,3673.2,3673.1,3.342892]
[1732994397622,0.55099539,3673.2,3673.1,5.17013361]
[1732994397806,0.8049329,3674.0,3673.7,2.72204]
[1732994398116,0.55,3674.0,3673.7,2.72204]
[1732994398715,0.0767,3674.1,3673.7,2.72204]
[1732994398926,0.5361787,3673.8,3673.7,2.72204]
[1732994399783,1.0861787,3673.8,3673.7,2.72204]
[1732994400669,1.0861787,3673.8,3673.7,4.54928161]
[1732994400894,0.0767,3674.7,3674.5,2.72139]
[1732994401097,0.79498388,3674.6,3674.2,3.49224]
[1732994401417,0.54010037,3674.6,3674.4,2.72152]
[1732994402226,0.79481846,3674.6,3674.2,3.49224]
[1732994402434,0.55,3674.5,3674.2,3.49224]
[1732994402723,0.55,3674.5,3674.3,2.72159]
[1732994402884,0.55,3674.5,3674.4,2.72153]
[1732994403631,0.55,3674.5,3674.2,0.7706]
[1732994403788,0.55,3674.5,3674.2,3.49223]
[1732994404490,0.55,3674.5,3674.2,2.72163]
[1732994405428,0.55,3674.5,3674.3,2.72158]
[1732994407538,0.55,3674.5,3674.1,2.72174]
[1732994407839,0.55,3674.5,3674.0,1.05664161]
[1732994407991,0.55,3674.5,3674.2,2.72166]
[1732994409423,0.55,3674.5,3673.8,3.0]
[1732994409424,0.55,3674.3,3673.8,3.0]
[1732994409623,0.55,3674.3,3673.8,3.80937036]
[1732994410230,0.55,3674.3,3673.9,2.72184]
[1732994410758,0.55,3674.3,3673.5,2.72215]
[1732994411058,0.55,3674.1,3673.5,2.72215]
[1732994411361,0.55,3674.1,3673.6,2.7221]
[1732994413044,0.55,3673.9,3673.6,2.7221]
[1732994413357,0.6267,3673.9,3673.3,4.54958161]
[1732994413547,0.6267,3673.9,3673.4,2.72223]
[1732994414749,0.6267,3673.9,3673.5,2.72218]
[1732994418268,0.6267,3673.9,3673.3,3.49294]
[1732994418431,0.6267,3673.9,3673.4,2.72227]
[1732994418631,3.34867,3673.9,3673.2,2.77529283]
[1732994418872,3.34867,3673.9,3673.3,2.72229]
[1732994419881,0.6267,3673.9,3673.4,2.72226]